[Event "Kupreichik Memorial Open 2018"]
[Site "Minsk"]
[Date "2018.06.23"]
[Round "9"]
[White "Zhukova, Natalia"]
[Black "Kruglikova, Viktorija"]
[Result "1-0"]
[ECO "A29"]
[WhiteElo "2356"]
[BlackElo "1839"]
[Annotator "NA"]
[PlyCount "141"]
[EventDate "2018.06.21"]
[EventCountry "BLR"]
[SourceTitle "playchess.com"]
[Source "ChessBase"]
[SourceQuality "1"]
[TimeControl "900+10"]

1. c4 {[%emt 0:00:00]} Nf6 {[%emt 0:00:02]} 2. Nc3 {[%emt 0:00:00]} e5 {[%emt 0:00:02]} 3. Nf3 {[%emt 0:00:00]} Nc6 {[%emt 0:00:01]} 4. g3 {[%emt 0:00:00]} d5 {[%emt 0:00:01]} 5. cxd5 {[%emt 0:00:03]} Nxd5 {[%emt 0:00:01]} 6. Bg2 {[%emt 0:00:02]} Nb6 {[%emt 0:00:01]} 7. O-O {[%emt 0:00:03]} Be7 {[%emt 0:00:04]} 8. a3 {[%emt 0:00:02]} Be6 {[%emt 0:00:04]} 9. b4 {[%emt 0:00:11]} a5 {[%emt 0:00:17]} 10. b5 {[%emt 0:00:31]} Nd4 {[%emt 0:00:14]} 11. Rb1 {[%emt 0:00:53]} a4 {[%emt 0:01:12]} 12. d3 {[%emt 0:01:46]} O-O {[%emt 0:02:44]} 13. Nxe5 {[%emt 0:03:29]} Bf6 {[%emt 0:00:52]} 14. f4 {[%emt 0:00:01]} Nb3 {[%emt 0:01:48]} 15. Bb2 {[%emt 0:01:58]} Bxe5 {[%emt 0:01:59]} 16. fxe5 {[%emt 0:00:01]} Qd4+ {[%emt 0:00:01]} 17. Kh1 {[%emt 0:00:22]} Qxe5 {[%emt 0:00:10]} 18. Nxa4 {[%emt 0:03:57]} Qxb5 {[%emt 0:00:13]} 19. Nxb6 {[%emt 0:00:03]} Qxb6 {[%emt 0:00:31]} 20. d4 {[%emt 0:02:04]} c6 {[%emt 0:02:32]} 21. e4 {[%emt 0:00:24]} Bc4 {[%emt 0:01:33]} 22. Rf3 {[%emt 0:00:06]} Na5 {[%emt 0:01:49]} 23. d5 {[%emt 0:00:16]} Qc7 {[%emt 0:01:08]} 24. Qd4 {[%emt 0:01:11]} f6 {[%emt 0:00:11]} 25. d6 {[%emt 0:00:24]} Qd7 {[%emt 0:00:05]} 26. Bc3 {[%emt 0:00:06]} b5 {[%emt 0:00:08]} 27. Bb4 {[%emt 0:00:28]} Rfe8 {[%emt 0:00:16]} 28. Re3 {[%emt 0:00:17]} Nb7 {[%emt 0:00:12]} 29. e5 {[%emt 0:00:02]} fxe5 {[%emt 0:00:06]} 30. Rxe5 {[%emt 0:00:01]} Rxe5 {[%emt 0:00:17]} 31. Qxe5 {[%emt 0:00:01]} Re8 {[%emt 0:00:01]} 32. Qd4 {[%emt 0:00:22]} Re6 {[%emt 0:00:26]} 33. Bh3 {[%emt 0:00:30]} Bd5+ {[%emt 0:00:23]} 34. Kg1 {[%emt 0:00:01]} Nxd6 {[%emt 0:00:19]} 35. Bxe6+ {[%emt 0:00:08]} Qxe6 {[%emt 0:00:01]} 36. Re1 {[%emt 0:00:06]} Ne4 {[%emt 0:00:16]} 37. Qa7 {[%emt 0:00:33]} h6 {[%emt 0:00:07]} 38. Qb8+ {[%emt 0:00:25]} Kh7 {[%emt 0:00:03]} 39. Qf4 {[%emt 0:00:01]} Qg6 {[%emt 0:00:56]} 40. g4 {[%emt 0:00:15]} Qe6 {[%emt 0:00:25]} 41. Qf5+ {[%emt 0:00:09]} Qxf5 {[%emt 0:00:01]} 42. gxf5 {[%emt 0:00:01]} Kg8 {[%emt 0:00:00]} 43. Ba5 {[%emt 0:00:27]} Kf7 {[%emt 0:00:01]} 44. Bb6 {[%emt 0:00:01]} Nd6 {[%emt 0:00:05]} 45. Rf1 {[%emt 0:00:09]} Be4 {[%emt 0:00:01]} 46. f6 {[%emt 0:00:04]} gxf6 {[%emt 0:00:01]} 47. Kf2 {[%emt 0:00:05]} f5 {[%emt 0:00:01]} 48. Rg1 {[%emt 0:00:08]} Nc4 {[%emt 0:00:08]} 49. Bc5 {[%emt 0:00:01]} Ne5 {[%emt 0:00:02]} 50. Ke2 {[%emt 0:00:10]} Nd3 {[%emt 0:00:34]} 51. Bd4 {[%emt 0:00:05]} Nf4+ {[%emt 0:00:01]} 52. Kd2 {[%emt 0:00:07]} Ne6 {[%emt 0:00:01]} 53. Be3 {[%emt 0:00:06]} f4 {[%emt 0:00:03]} 54. Bxf4 {[%emt 0:00:07]} h5 {[%emt 0:00:49]} 55. Ke3 {[%emt 0:00:07]} Bd5 {[%emt 0:00:01]} 56. Be5 {[%emt 0:00:04]} Bc4 {[%emt 0:00:42]} 57. Ke4 {[%emt 0:00:22]} Nc5+ {[%emt 0:00:12]} 58. Kf5 {[%emt 0:00:11]} Bd3+ {[%emt 0:00:01]} 59. Kg5 {[%emt 0:00:06]} Be2 {[%emt 0:00:07]} 60. Re1 {[%emt 0:00:41]} Ne6+ {[%emt 0:00:02]} 61. Kh4 {[%emt 0:00:09]} Bc4 {[%emt 0:00:38]} 62. Kxh5 {[%emt 0:00:03]} Bd5 {[%emt 0:00:01]} 63. Rf1+ {[%emt 0:00:04]} Ke7 {[%emt 0:00:01]} 64. h4 {[%emt 0:00:12]} c5 {[%emt 0:00:01]} 65. Kg4 {[%emt 0:00:16]} b4 {[%emt 0:00:29]} 66. axb4 {[%emt 0:00:04]} cxb4 {[%emt 0:00:01]} 67. h5 {[%emt 0:00:03]} b3 {[%emt 0:00:25]} 68. h6 {[%emt 0:00:31]} Be4 {[%emt 0:00:02]} 69. Ra1 {[%emt 0:00:05]} Nf8 {[%emt 0:00:09]} 70. Bg7 {[%emt 0:00:07]} Nh7 {[%emt 0:00:09]} 71. Re1 {[%emt 0:00:04]} 1-0

[Event "Kupreichik Memorial Open 2018"]
[Site "Minsk"]
[Date "2018.06.23"]
[Round "9"]
[White "Nomin-Erdene, Davaademberel"]
[Black "Savolainen, Lev P"]
[Result "1-0"]
[ECO "C11"]
[WhiteElo "2312"]
[BlackElo "2053"]
[Annotator "NA"]
[PlyCount "67"]
[EventDate "2018.06.21"]
[EventCountry "BLR"]
[SourceTitle "playchess.com"]
[Source "ChessBase"]
[SourceQuality "1"]
[TimeControl "900+10"]

1. e4 {[%emt 0:00:00]} e6 {[%emt 0:00:02]} 2. d4 {[%emt 0:00:00]} d5 {[%emt 0:00:01]} 3. Nc3 {[%emt 0:00:00]} Nf6 {[%emt 0:00:02]} 4. e5 {[%emt 0:00:00]} Nfd7 {[%emt 0:00:01]} 5. f4 {[%emt 0:00:00]} c5 {[%emt 0:00:01]} 6. Nf3 {[%emt 0:00:01]} Nc6 {[%emt 0:00:01]} 7. Be3 {[%emt 0:00:03]} f6 {[%emt 0:00:02]} 8. exf6 {[%emt 0:01:10]} Qxf6 {[%emt 0:00:03]} 9. Nb5 {[%emt 0:03:16]} Qd8 {[%emt 0:00:13]} 10. g3 {[%emt 0:03:15]} Qb6 {[%emt 0:01:12]} 11. Rb1 {[%emt 0:01:23]} a6 {[%emt 0:02:18]} 12. dxc5 {[%emt 0:02:33]} Nxc5 {[%emt 0:00:31]} 13. Nbd4 {[%emt 0:00:46]} Bd6 {[%emt 0:04:23]} 14. Bg2 {[%emt 0:01:08]} O-O {[%emt 0:01:28]} 15. O-O {[%emt 0:00:01]} Bd7 {[%emt 0:00:08]} 16. b4 {[%emt 0:02:40]} Ne4 {[%emt 0:00:33]} 17. Nf5 {[%emt 0:00:01]} Qc7 {[%emt 0:00:04]} 18. Nxd6 {[%emt 0:00:02]} Qxd6 {[%emt 0:00:02]} 19. Qe1 {[%emt 0:00:09]} e5 {[%emt 0:01:06]} 20. Ng5 {[%emt 0:00:16]} Nxg5 {[%emt 0:00:17]} 21. Bc5 {[%emt 0:00:02]} Qe6 {[%emt 0:01:11]} 22. Bxf8 {[%emt 0:00:04]} Nh3+ {[%emt 0:00:57]} 23. Bxh3 {[%emt 0:00:01]} Qxh3 {[%emt 0:00:02]} 24. Bc5 {[%emt 0:00:10]} Bf5 {[%emt 0:00:51]} 25. Qd2 {[%emt 0:01:30]} Be4 {[%emt 0:00:14]} 26. f5 {[%emt 0:00:12]} h5 {[%emt 0:01:41]} 27. f6 {[%emt 0:00:07]} gxf6 {[%emt 0:00:46]} 28. Rxf6 {[%emt 0:00:01]} Qg4 {[%emt 0:00:35]} 29. Rbf1 {[%emt 0:00:17]} Nd4 {[%emt 0:00:26]} 30. Bxd4 {[%emt 0:00:08]} exd4 {[%emt 0:00:03]} 31. Qh6 {[%emt 0:00:09]} Qg7 {[%emt 0:00:22]} 32. Qxh5 {[%emt 0:00:06]} Rc8 {[%emt 0:00:36]} 33. R6f4 {[%emt 0:00:05]} Rc6 {[%emt 0:00:05]} 34. Qe8+ {[%emt 0:00:05]} 1-0

[Event "Kupreichik Memorial Open 2018"]
[Site "Minsk"]
[Date "2018.06.23"]
[Round "9"]
[White "Rakhmangulova, Anastasiya"]
[Black "Kirilin, Dmitrij"]
[Result "1-0"]
[ECO "B96"]
[WhiteElo "2244"]
[BlackElo "2026"]
[Annotator "NA"]
[PlyCount "60"]
[EventDate "2018.06.21"]
[EventCountry "BLR"]
[SourceTitle "playchess.com"]
[Source "ChessBase"]
[SourceQuality "1"]
[TimeControl "900+10"]

1. e4 {[%emt 0:00:00]} c5 {[%emt 0:00:01]} 2. Nf3 {[%emt 0:00:00]} d6 {[%emt 0:00:04]} 3. d4 {[%emt 0:00:00]} cxd4 4. Nxd4 {[%emt 0:00:00]} Nf6 {[%emt 0:00:03]} 5. Nc3 {[%emt 0:00:00]} a6 {[%emt 0:00:00]} 6. Bg5 {[%emt 0:00:00]} e6 {[%emt 0:00:02]} 7. f4 {[%emt 0:00:00]} Nbd7 {[%emt 0:00:02]} 8. Qf3 {[%emt 0:00:00]} Qc7 {[%emt 0:00:01]} 9. O-O-O {[%emt 0:00:03]} b5 {[%emt 0:00:01]} 10. Bd3 {[%emt 0:00:03]} Bb7 {[%emt 0:00:03]} 11. Rhe1 {[%emt 0:00:01]} Be7 {[%emt 0:00:01]} 12. Qh3 {[%emt 0:04:37]} b4 {[%emt 0:01:30]} 13. Nb1 {[%emt 0:03:22]} Rc8 {[%emt 0:00:57]} 14. Nd2 {[%emt 0:00:48]} Qb6 {[%emt 0:03:42]} 15. N4b3 {[%emt 0:01:28]} e5 {[%emt 0:02:29]} 16. Nc4 {[%emt 0:00:31]} Qc7 {[%emt 0:00:09]} 17. fxe5 {[%emt 0:02:07]} dxe5 {[%emt 0:00:29]} 18. Bxf6 {[%emt 0:00:27]} Nxf6 {[%emt 0:00:20]} 19. Nba5 {[%emt 0:01:02]} Ba8 {[%emt 0:02:00]} 20. Qg3 {[%emt 0:00:02]} O-O {[%emt 0:00:45]} 21. Qxe5 {[%emt 0:00:29]} Qa7 {[%emt 0:00:14]} 22. Qg3 {[%emt 0:00:34]} Rfd8 {[%emt 0:00:39]} 23. e5 {[%emt 0:00:33]} Nd5 {[%emt 0:00:19]} 24. e6 {[%emt 0:01:23]} fxe6 {[%emt 0:00:49]} 25. Qh3 {[%emt 0:00:29]} h6 {[%emt 0:00:10]} 26. Qxe6+ {[%emt 0:00:02]} Kh8 {[%emt 0:00:03]} 27. Ne5 Bg5+ {[%emt 0:00:51]} 28. Kb1 {[%emt 0:00:30]} Rc7 {[%emt 0:00:43]} 29. Ng6+ {[%emt 0:00:27]} Kh7 {[%emt 0:00:01]} 30. Nf4+ {[%emt 0:00:23]} Kh8 {[%emt 0:00:03]} 1-0

[Event "Kupreichik Memorial Open 2018"]
[Site "Minsk"]
[Date "2018.06.23"]
[Round "9"]
[White "Osmolny, Vladimir I"]
[Black "Meshkov, Yuri A"]
[Result "0-1"]
[ECO "A36"]
[WhiteElo "2211"]
[BlackElo "2322"]
[Annotator "NA"]
[PlyCount "58"]
[EventDate "2018.06.21"]
[EventCountry "BLR"]
[SourceTitle "playchess.com"]
[Source "ChessBase"]
[SourceQuality "1"]
[TimeControl "900+10"]

1. c4 {[%emt 0:00:00]} g6 {[%emt 0:00:15]} 2. Nc3 {[%emt 0:00:00]} Bg7 {[%emt 0:00:03]} 3. g3 {[%emt 0:00:45]} c5 {[%emt 0:00:02]} 4. Bg2 {[%emt 0:00:02]} Nc6 {[%emt 0:00:01]} 5. e3 {[%emt 0:00:15]} Nh6 {[%emt 0:00:09]} 6. Nge2 {[%emt 0:00:16]} Nf5 {[%emt 0:00:03]} 7. d3 {[%emt 0:00:31]} a6 {[%emt 0:00:12]} 8. O-O {[%emt 0:00:14]} Rb8 {[%emt 0:00:01]} 9. a4 {[%emt 0:00:45]} O-O {[%emt 0:00:43]} 10. h3 {[%emt 0:00:46]} d6 {[%emt 0:00:24]} 11. Kh2 {[%emt 0:00:26]} Bd7 {[%emt 0:00:23]} 12. Bd2 {[%emt 0:01:20]} Nb4 {[%emt 0:00:46]} 13. Be1 {[%emt 0:00:09]} Bc6 {[%emt 0:00:31]} 14. Bxc6 {[%emt 0:00:48]} bxc6 {[%emt 0:00:06]} 15. g4 {[%emt 0:00:10]} Nh6 {[%emt 0:00:07]} 16. f4 {[%emt 0:00:25]} f5 {[%emt 0:00:01]} 17. Ng3 {[%emt 0:00:17]} fxg4 {[%emt 0:00:42]} 18. hxg4 {[%emt 0:00:05]} Qd7 {[%emt 0:00:00]} 19. Kh3 {[%emt 0:01:36]} e5 {[%emt 0:01:42]} 20. Rb1 {[%emt 0:01:38]} exf4 {[%emt 0:00:08]} 21. exf4 {[%emt 0:00:13]} Rbe8 {[%emt 0:01:37]} 22. Nce4 {[%emt 0:00:21]} a5 {[%emt 0:00:39]} 23. Bc3 {[%emt 0:00:19]} Bd4 {[%emt 0:01:09]} 24. Bxd4 {[%emt 0:00:36]} cxd4 {[%emt 0:00:02]} 25. c5 {[%emt 0:04:58]} d5 {[%emt 0:00:08]} 26. Nd6 {[%emt 0:00:19]} Re3 {[%emt 0:00:03]} 27. Kh4 {[%emt 0:01:11]} Nxd3 {[%emt 0:01:18]} 28. g5 {[%emt 0:00:19]} Nxf4 {[%emt 0:00:33]} 29. Rf2 {[%emt 0:00:15]} Qh3# {[%emt 0:00:05]} 0-1

[Event "Kupreichik Memorial Open 2018"]
[Site "Minsk"]
[Date "2018.06.23"]
[Round "9"]
[White "Katashuk, Uladzislau"]
[Black "Ilyuchyk, Yana"]
[Result "1-0"]
[ECO "A53"]
[WhiteElo "2149"]
[BlackElo "1971"]
[Annotator "NA"]
[PlyCount "63"]
[EventDate "2018.06.21"]
[EventCountry "BLR"]
[SourceTitle "playchess.com"]
[Source "ChessBase"]
[SourceQuality "1"]
[TimeControl "900+10"]

1. d4 {[%emt 0:00:00]} Nf6 {[%emt 0:00:02]} 2. c4 {[%emt 0:00:00]} d6 {[%emt 0:00:03]} 3. Nc3 {[%emt 0:00:00]} Nbd7 {[%emt 0:00:03]} 4. e4 {[%emt 0:00:00]} e5 {[%emt 0:00:02]} 5. Nge2 {[%emt 0:00:08]} g6 {[%emt 0:00:08]} 6. h3 {[%emt 0:00:05]} Bg7 {[%emt 0:00:05]} 7. Be3 {[%emt 0:00:14]} O-O {[%emt 0:00:09]} 8. d5 {[%emt 0:00:08]} Nc5 {[%emt 0:00:54]} 9. Qc2 {[%emt 0:00:17]} a5 {[%emt 0:00:03]} 10. g4 {[%emt 0:00:02]} Ne8 {[%emt 0:00:56]} 11. Ng3 {[%emt 0:01:56]} Bf6 {[%emt 0:01:28]} 12. O-O-O {[%emt 0:00:11]} Bg5 {[%emt 0:00:20]} 13. Bd3 {[%emt 0:01:06]} Bxe3+ {[%emt 0:01:43]} 14. fxe3 {[%emt 0:00:01]} Ng7 {[%emt 0:01:15]} 15. Qg2 {[%emt 0:01:15]} Qg5 {[%emt 0:01:07]} 16. Kd2 {[%emt 0:00:50]} Nxd3 {[%emt 0:01:25]} 17. Kxd3 {[%emt 0:00:01]} h5 {[%emt 0:00:09]} 18. Nb5 {[%emt 0:04:30]} Bd7 {[%emt 0:03:40]} 19. gxh5 {[%emt 0:01:05]} Nxh5 {[%emt 0:00:06]} 20. Rdg1 {[%emt 0:00:10]} Nxg3 {[%emt 0:01:05]} 21. Qh2 {[%emt 0:02:11]} Bxb5 {[%emt 0:01:06]} 22. cxb5 {[%emt 0:00:11]} Qd8 {[%emt 0:00:02]} 23. Rxg3 {[%emt 0:00:32]} Kg7 {[%emt 0:00:48]} 24. h4 {[%emt 0:00:53]} a4 {[%emt 0:00:40]} 25. h5 {[%emt 0:00:08]} Rh8 {[%emt 0:00:17]} 26. Qg2 {[%emt 0:00:08]} Qe8 {[%emt 0:00:16]} 27. hxg6 {[%emt 0:00:11]} Qxb5+ {[%emt 0:00:06]} 28. Kc2 {[%emt 0:00:21]} Qc4+ {[%emt 0:00:02]} 29. Kb1 {[%emt 0:00:06]} Qd3+ {[%emt 0:00:41]} 30. Ka1 {[%emt 0:01:37]} f6 {[%emt 0:00:22]} 31. Rh7+ {[%emt 0:00:09]} Kf8 {[%emt 0:00:57]} 32. g7+ {[%emt 0:00:02]} 1-0

[Event "Kupreichik Memorial Open 2018"]
[Site "Minsk"]
[Date "2018.06.23"]
[Round "9"]
[White "Sirotkina, Nina"]
[Black "Tkachou, Viktar"]
[Result "1-0"]
[ECO "A45"]
[WhiteElo "2116"]
[BlackElo "1791"]
[Annotator "NA"]
[PlyCount "87"]
[EventDate "2018.06.21"]
[EventCountry "BLR"]
[SourceTitle "playchess.com"]
[Source "ChessBase"]
[SourceQuality "1"]
[TimeControl "900+10"]

1. d4 {[%emt 0:00:00]} Nf6 {[%emt 0:00:01]} 2. Bf4 {[%emt 0:00:00]} d6 {[%emt 0:00:03]} 3. Nd2 {[%emt 0:00:03]} e6 {[%emt 0:00:09]} 4. e4 {[%emt 0:00:05]} c5 {[%emt 0:00:24]} 5. c3 {[%emt 0:01:38]} cxd4 {[%emt 0:00:38]} 6. cxd4 {[%emt 0:00:03]} a6 {[%emt 0:00:19]} 7. Ngf3 {[%emt 0:00:11]} Be7 {[%emt 0:00:06]} 8. a3 {[%emt 0:00:51]} O-O {[%emt 0:00:25]} 9. Bd3 {[%emt 0:00:41]} Nbd7 {[%emt 0:00:47]} 10. Qe2 {[%emt 0:00:21]} b6 {[%emt 0:00:46]} 11. O-O {[%emt 0:00:15]} Bb7 {[%emt 0:00:08]} 12. Nc4 {[%emt 0:01:58]} Nb8 {[%emt 0:00:50]} 13. Rfd1 {[%emt 0:01:13]} b5 {[%emt 0:00:13]} 14. Ncd2 {[%emt 0:00:04]} Nbd7 {[%emt 0:00:18]} 15. Nf1 {[%emt 0:01:07]} Nb6 {[%emt 0:00:26]} 16. Ng3 {[%emt 0:01:17]} Rc8 {[%emt 0:00:33]} 17. b3 {[%emt 0:00:11]} Rc3 {[%emt 0:00:45]} 18. Rab1 {[%emt 0:00:16]} Qa8 {[%emt 0:00:27]} 19. Bd2 {[%emt 0:00:34]} Rcc8 {[%emt 0:00:30]} 20. Ba5 {[%emt 0:00:44]} Qa7 {[%emt 0:02:02]} 21. h4 {[%emt 0:00:20]} h6 {[%emt 0:00:12]} 22. h5 {[%emt 0:00:06]} Rfe8 {[%emt 0:01:01]} 23. Rb2 {[%emt 0:00:24]} Bd8 {[%emt 0:00:28]} 24. Bb4 {[%emt 0:00:20]} Qb8 {[%emt 0:00:06]} 25. e5 {[%emt 0:00:18]} dxe5 {[%emt 0:00:09]} 26. dxe5 {[%emt 0:00:03]} Bxf3 {[%emt 0:00:39]} 27. gxf3 {[%emt 0:00:13]} Nfd5 {[%emt 0:00:04]} 28. Qe4 {[%emt 0:00:41]} Nxb4 {[%emt 0:02:10]} 29. Qh7+ {[%emt 0:00:11]} Kf8 {[%emt 0:00:01]} 30. axb4 {[%emt 0:00:12]} Qxe5 {[%emt 0:00:38]} 31. Re2 {[%emt 0:00:04]} Qf6 {[%emt 0:00:22]} 32. Qh8+ {[%emt 0:01:06]} Ke7 {[%emt 0:00:06]} 33. Nf5+ {[%emt 0:00:06]} Kd7 {[%emt 0:00:46]} 34. Bxb5+ {[%emt 0:00:11]} Kc7 {[%emt 0:00:11]} 35. Qxe8 {[%emt 0:00:24]} exf5 {[%emt 0:00:27]} 36. Rc2+ {[%emt 0:00:30]} Kb8 {[%emt 0:00:24]} 37. Rxc8+ {[%emt 0:00:13]} Kxc8 {[%emt 0:00:33]} 38. Bxa6+ {[%emt 0:00:17]} Kc7 {[%emt 0:00:06]} 39. Bb5 {[%emt 0:00:50]} Be7 {[%emt 0:00:54]} 40. Rc1+ {[%emt 0:00:16]} Kb7 {[%emt 0:00:59]} 41. Bc6+ {[%emt 0:01:04]} Ka7 {[%emt 0:00:27]} 42. Rc2 {[%emt 0:00:11]} Qa1+ 43. Kg2 Bxb4 44. Qxf7+ 1-0

[Event "Kupreichik Memorial Open 2018"]
[Site "Minsk"]
[Date "2018.06.23"]
[Round "9"]
[White "Fedotov, Konstantin"]
[Black "Sadovnikov, Konstantin"]
[Result "1-0"]
[ECO "B24"]
[WhiteElo "2017"]
[BlackElo "1907"]
[Annotator "NA"]
[PlyCount "81"]
[EventDate "2018.06.21"]
[EventCountry "BLR"]
[SourceTitle "playchess.com"]
[Source "ChessBase"]
[SourceQuality "1"]
[TimeControl "900+10"]

1. e4 {[%emt 0:00:00]} c5 {[%emt 0:00:01]} 2. Nc3 {[%emt 0:00:00]} Nc6 {[%emt 0:00:01]} 3. Bb5 {[%emt 0:00:00]} Nd4 {[%emt 0:00:01]} 4. Bc4 {[%emt 0:00:00]} e6 {[%emt 0:00:01]} 5. Nf3 {[%emt 0:00:00]} Ne7 {[%emt 0:00:01]} 6. Nxd4 {[%emt 0:00:01]} cxd4 {[%emt 0:00:01]} 7. Ne2 {[%emt 0:00:01]} Nc6 {[%emt 0:00:01]} 8. d3 {[%emt 0:00:02]} g6 {[%emt 0:00:02]} 9. O-O {[%emt 0:00:03]} Bg7 {[%emt 0:00:01]} 10. f4 {[%emt 0:00:01]} O-O {[%emt 0:00:04]} 11. a3 {[%emt 0:00:34]} Kh8 {[%emt 0:00:34]} 12. b4 {[%emt 0:00:03]} d5 {[%emt 0:00:23]} 13. exd5 {[%emt 0:00:16]} exd5 {[%emt 0:00:01]} 14. Bb3 {[%emt 0:00:01]} Bg4 {[%emt 0:00:08]} 15. h3 {[%emt 0:00:01]} Be6 {[%emt 0:00:00]} 16. Ng3 {[%emt 0:01:05]} Ne7 {[%emt 0:00:13]} 17. Qf3 {[%emt 0:00:21]} Qd7 {[%emt 0:00:19]} 18. Bb2 {[%emt 0:00:40]} f5 {[%emt 0:03:07]} 19. Ne2 {[%emt 0:01:00]} Nc6 {[%emt 0:00:02]} 20. Qf2 {[%emt 0:00:02]} Rad8 {[%emt 0:00:42]} 21. Nxd4 {[%emt 0:00:22]} Nxd4 {[%emt 0:00:01]} 22. Bxd4 {[%emt 0:00:02]} b6 {[%emt 0:00:03]} 23. Rae1 {[%emt 0:00:08]} Rfe8 {[%emt 0:00:05]} 24. Bxg7+ {[%emt 0:00:10]} Qxg7 {[%emt 0:00:18]} 25. Re5 {[%emt 0:00:02]} Qf7 {[%emt 0:04:04]} 26. Rfe1 {[%emt 0:00:46]} Kg8 {[%emt 0:00:51]} 27. Qh4 {[%emt 0:00:44]} Rd6 {[%emt 0:01:38]} 28. Qg5 {[%emt 0:02:34]} Qd7 {[%emt 0:02:53]} 29. Qf6 {[%emt 0:03:06]} Rf8 {[%emt 0:00:06]} 30. Qh4 {[%emt 0:00:47]} Re8 {[%emt 0:00:00]} 31. Qf2 {[%emt 0:00:08]} Qf7 {[%emt 0:02:00]} 32. Qd4 {[%emt 0:00:14]} Red8 {[%emt 0:00:56]} 33. R1e2 {[%emt 0:01:48]} R8d7 {[%emt 0:00:20]} 34. Qf2 {[%emt 0:00:16]} Re7 {[%emt 0:00:09]} 35. Qe1 {[%emt 0:00:03]} Kf8 {[%emt 0:00:11]} 36. Bxd5 {[%emt 0:00:28]} Rxd5 {[%emt 0:00:21]} 37. Rxe6 {[%emt 0:00:01]} Rxe6 {[%emt 0:00:12]} 38. Rxe6 {[%emt 0:00:02]} Qc7 {[%emt 0:00:22]} 39. Re8+ {[%emt 0:00:19]} Kf7 {[%emt 0:00:00]} 40. Qe6+ {[%emt 0:00:03]} Kg7 {[%emt 0:00:01]} 41. Re7+ {[%emt 0:00:02]} 1-0

[Event "Kupreichik Memorial Open 2018"]
[Site "Minsk"]
[Date "2018.06.23"]
[Round "9"]
[White "Artsiomau, Stanislau"]
[Black "Kolosovskaya, Olga"]
[Result "1-0"]
[ECO "B40"]
[WhiteElo "1954"]
[BlackElo "1747"]
[Annotator "NA"]
[PlyCount "53"]
[EventDate "2018.06.21"]
[EventCountry "BLR"]
[SourceTitle "playchess.com"]
[Source "ChessBase"]
[SourceQuality "1"]
[TimeControl "900+10"]

1. e4 {[%emt 0:00:00]} c5 {[%emt 0:00:01]} 2. Nf3 {[%emt 0:00:00]} e6 {[%emt 0:00:01]} 3. g3 {[%emt 0:00:00]} Nc6 {[%emt 0:00:02]} 4. Bg2 {[%emt 0:00:00]} g6 {[%emt 0:00:03]} 5. d3 {[%emt 0:00:01]} Bg7 {[%emt 0:00:02]} 6. O-O {[%emt 0:00:02]} Nge7 {[%emt 0:00:02]} 7. Re1 {[%emt 0:00:02]} d6 {[%emt 0:00:06]} 8. Nbd2 {[%emt 0:00:18]} O-O {[%emt 0:00:03]} 9. Nf1 {[%emt 0:00:01]} Rb8 {[%emt 0:00:03]} 10. h4 {[%emt 0:00:02]} Nd4 {[%emt 0:00:35]} 11. Nxd4 {[%emt 0:00:37]} cxd4 {[%emt 0:00:06]} 12. h5 {[%emt 0:00:16]} e5 {[%emt 0:02:25]} 13. Nh2 {[%emt 0:00:10]} f5 {[%emt 0:00:44]} 14. hxg6 {[%emt 0:00:05]} hxg6 {[%emt 0:00:03]} 15. exf5 {[%emt 0:00:27]} gxf5 {[%emt 0:01:08]} 16. Bg5 {[%emt 0:00:20]} Qe8 {[%emt 0:00:09]} 17. f4 {[%emt 0:01:12]} Qf7 {[%emt 0:04:48]} 18. Nf3 {[%emt 0:00:36]} Ng6 {[%emt 0:00:16]} 19. Nd2 {[%emt 0:01:31]} Be6 {[%emt 0:00:22]} 20. Nc4 {[%emt 0:01:07]} Bxc4 {[%emt 0:00:32]} 21. dxc4 {[%emt 0:00:00]} e4 {[%emt 0:00:21]} 22. Qh5 {[%emt 0:01:13]} Nh8 {[%emt 0:00:43]} 23. Qh3 {[%emt 0:01:05]} Qxc4 {[%emt 0:00:07]} 24. Rxe4 {[%emt 0:01:08]} fxe4 {[%emt 0:00:19]} 25. Bxe4 {[%emt 0:00:02]} Rbe8 {[%emt 0:02:04]} 26. Bh7+ {[%emt 0:00:08]} Kf7 {[%emt 0:00:02]} 27. Qd7+ {[%emt 0:00:01] Kg8 Be4 Rb8 Qh3 Rf7} 1-0

[Event "Kupreichik Memorial Open 2018"]
[Site "Minsk"]
[Date "2018.06.23"]
[Round "9"]
[White "Belyuga, Mikhail"]
[Black "Sihite, Chelsie Monica Igne"]
[Result "0-1"]
[ECO "A95"]
[WhiteElo "1908"]
[BlackElo "2236"]
[Annotator "NA"]
[PlyCount "54"]
[EventDate "2018.06.21"]
[EventCountry "BLR"]
[SourceTitle "playchess.com"]
[Source "ChessBase"]
[SourceQuality "1"]
[TimeControl "900+10"]

1. Nf3 {[%emt 0:00:00]} d5 {[%emt 0:00:02]} 2. d4 {[%emt 0:00:00]} c6 {[%emt 0:00:02]} 3. c4 {[%emt 0:00:00]} e6 {[%emt 0:00:01]} 4. g3 {[%emt 0:00:01]} f5 {[%emt 0:00:02]} 5. Bg2 {[%emt 0:00:07]} Nf6 {[%emt 0:00:02]} 6. O-O {[%emt 0:00:04]} Be7 {[%emt 0:00:02]} 7. Nc3 {[%emt 0:00:23]} O-O {[%emt 0:00:03]} 8. Bf4 {[%emt 0:07:25]} h6 {[%emt 0:01:10]} 9. h4 {[%emt 0:00:32]} Qe8 {[%emt 0:00:19]} 10. Qd2 {[%emt 0:00:37]} Kh7 {[%emt 0:00:36]} 11. Ne5 {[%emt 0:00:39]} Nh5 {[%emt 0:00:33]} 12. Bf3 {[%emt 0:01:34]} Nd7 {[%emt 0:00:27]} 13. Nxd7 {[%emt 0:00:47]} Bxd7 {[%emt 0:00:04]} 14. Be5 {[%emt 0:00:03]} Qg6 {[%emt 0:02:55]} 15. Bxh5 {[%emt 0:01:35]} Qxh5 {[%emt 0:00:02]} 16. e3 {[%emt 0:00:16]} dxc4 {[%emt 0:01:17]} 17. Kg2 {[%emt 0:01:30]} b5 {[%emt 0:00:17]} 18. Ne2 {[%emt 0:00:03]} c5 {[%emt 0:01:03]} 19. d5 {[%emt 0:00:46]} exd5 {[%emt 0:00:41]} 20. Qxd5 {[%emt 0:00:42]} Qe8 {[%emt 0:00:01]} 21. Qd2 {[%emt 0:00:47]} Bc6+ {[%emt 0:00:05]} 22. Kg1 {[%emt 0:00:09]} Qh5 {[%emt 0:00:10]} 23. Nf4 {[%emt 0:00:37]} Qf3 {[%emt 0:00:27]} 24. Kh2 {[%emt 0:00:01]} g5 {[%emt 0:00:39]} 25. hxg5 {[%emt 0:00:02]} hxg5 {[%emt 0:00:19]} 26. Rh1 {[%emt 0:00:01]} gxf4 {[%emt 0:00:03]} 27. Kg1+ {[%emt 0:00:01]} Qxh1# {[%emt 0:00:03]} 0-1